Cogmind - Beta 15 @@@ ROGUE MODE // 2025.07.24 @ 14:53:35 Player: C0-2MO Result: Destroyed by Y-54 Guardian with Flak Gun Performance ------------- Evolutions (4) 2000 Regions Visited (13) 2600 Robots Destroyed (55) 275 Value Destroyed (4045) 4045 Prototype IDs (12) 240 Alien Tech Used (0) 0 Bonus (1693) 1693 TOTAL SCORE: 10853 Bonus ------- High Alert Combat Kills 169 Follower Combat Kills 624 Entered Garrisons 600 Acquired ECA 300 Cogmind --------- Core Integrity 0/850 Matter 206/300 Energy 84/100 System Corruption 0% Temperature Cool (12) Movement Core (50) Location -6/Garrison Parts ------- > --- POWER (1) -------- (None) > --- PROPULSION (5) --- (None) > --- UTILITY (7) ------ Enhanced Optical Array Advanced Signal Interpreter Improved Hacking Suite Improved Hacking Suite > --- WEAPON (2) ------- Chainsword > --- INVENTORY (5) ---- Light Angular Momentum Engine Stasis Canceller Mini Assault Cannon Plasma Cutter Peak State ------------ > --- POWER ------------ Light Angular Momentum Engine > --- PROPULSION ------- Cesium-ion Thruster Cesium-ion Thruster Xenon Bombardment Thruster Xenon Bombardment Thruster Nuclear Pulse Thruster > --- UTILITY ---------- Medium Storage Unit Enhanced Optical Array Advanced Sensor Array Advanced Signal Interpreter Improved Hacking Suite Improved Hacking Suite Improved System Shield > --- WEAPON ----------- Mini Assault Cannon Shock Maul > --- INVENTORY -------- Micro Nuclear Core Xenon Bombardment Thruster Power Amplifier Experimental Energy Well Stasis Canceller Transmission Jammer Utility Shielding Plasma Cutter Chainsword [Rating: 69] Favorites ----------- Power Light Ion Engine Engine Light Ion Engine Power Core Micro Nuclear Core Propulsion Cesium-ion Thruster Hover Unit Hover Unit Flight Unit Cesium-ion Thruster Utility Hacking Suite Device Advanced Sensor Array Storage Medium Storage Unit Processor Machine Analyzer Hackware Hacking Suite Protection Improved Light Armor Plating Weapon Makeshift Hammer Energy Gun Improved EM Shotgun Energy Cannon Particle Cannon Ballistic Gun Light Assault Rifle Ballistic Cannon Mini Assault Cannon Launcher Mini Grenade Launcher Special Weapon Plasma Cutter Impact Weapon Makeshift Hammer Slashing Weapon Chainsword Build | -11 -10 -9 -9 -8 -8 -8 -8 -8 -7 -7 -7 -6 -6 ------- Run | Yrd Mat Mat Min Mat Gar Mat Gar Mat Fac Low Low Fac Gar Slots Evolved 8 | . . 2 . 2 . . . . 2 . . 2 . Power . | . . . . . . . . . . . . . . Propulsion 3 | . . 1 . 1 . . . . 1 . . . . Utility 5 | . . 1 . 1 . . . . 1 . . 2 . Weapon . | . . . . . . . . . . . . . . Parts Attached 95 | 2 7 16 3 5 1 2 5 1 31 4 2 15 1 Power 10 | . 1 1 . . . . . 1 5 1 . 1 . Engine 6 | . 1 1 . . . . . 1 2 . . 1 . Core 4 | . . . . . . . . . 3 1 . . . Reactor . | . . . . . . . . . . . . . . Propulsion 30 | . 4 6 . 1 . 1 1 . 11 1 1 3 1 Treads . | . . . . . . . . . . . . . . Leg . | . . . . . . . . . . . . . . Wheel . | . . . . . . . . . . . . . . Hover 2 | . 2 . . . . . . . . . . . . Flight 28 | . 2 6 . 1 . 1 1 . 11 1 1 3 1 Utility 33 | . 1 3 . 3 1 . 2 . 12 2 . 9 . Device 6 | . . 1 . . . . . . 1 1 . 3 . Storage 5 | . . 1 . 1 1 . . . 2 . . . . Processor 6 | . . 1 . . . . . . 2 1 . 2 . Hackware 13 | . 1 . . 1 . . 1 . 6 . . 4 . Protection 3 | . . . . 1 . . 1 . 1 . . . . Artifact . | . . . . . . . . . . . . . . Weapon 22 | 2 1 6 3 1 . 1 2 . 3 . 1 2 . Energy Gun 2 | . . 1 . 1 . . . . . . . . . Energy Cannon 2 | . . 2 . . . . . . . . . . . Ballistic Gun 5 | 2 1 1 . . . . . . 1 . . . . Ballistic Cannon 1 | . . . . . . . . . . . . 1 . Launcher 3 | . . . 1 . . 1 . . . . 1 . . Special Weapon 2 | . . 1 . . . . 1 . . . . . . Impact Weapon 2 | . . . 1 . . . . . . . . 1 . Slashing Weapon 5 | . . 1 1 . . . 1 . 2 . . . . Piercing Weapon . | . . . . . . . . . . . . . . Special Melee Weapon . | . . . . . . . . . . . . . . Unidentified Prototypes 6 | . . 2 . 1 1 . . . . . . 2 . Parts Lost 41 | . 3 3 . . . . 6 . 21 1 . . 7 Power 4 | . . . . . . . 1 . 3 . . . . Propulsion 24 | . 1 2 . . . . 3 . 11 1 . . 6 Utility 8 | . . . . . . . 2 . 5 . . . 1 Weapon 5 | . 2 1 . . . . . . 2 . . . . Highest Loss Streak 7 | . 2 3 . . . . 4 . 7 1 . . 3 To Critical Strikes . | . . . . . . . . . . . . . . Average Backups 7 | 1 4 6 8 8 10 9 9 4 4 7 9 9 8 Power . | 1 1 . . . 1 1 1 . . 1 2 1 1 Propulsion 1 | . . 2 2 1 3 2 2 . . . . . . Utility 2 | . . . 2 3 3 3 3 1 2 4 5 5 4 Weapon 1 | . . 3 3 2 2 2 2 2 1 . . 1 1 Tool/Special . | . . . . . . . . . . . . . . Unused Backups 6 | . . 1 . . 1 . . . . . . 1 3 Power . | . . . . . . . . . . . . . . Propulsion . | . . . . . . . . . . . . . . Utility 4 | . . . . . 1 . . . . . . . 3 Weapon 2 | . . 1 . . . . . . . . . 1 . Tool/Special . | . . . . . . . . . . . . . . Average Slot Usage (%) 83 | . 50 88 88 90 90 90 86 75 68 90 94 98 75 Engine 6 | . 4 9 11 9 9 9 8 7 3 . . 5 1 Flight 30 | . 15 30 33 36 36 36 35 31 21 29 32 32 19 Device 2 | . . 4 11 1 . . . . . 6 7 9 . Storage 6 | . . 10 11 9 9 9 8 . 1 7 7 6 4 Processor 3 | . . 3 . . . . . . 8 7 7 9 13 Hackware 16 | . 5 11 11 17 18 18 17 18 19 15 15 19 20 Protection 4 | . . . . 7 9 9 6 9 2 . . . 5 Ballistic Gun 2 | . 23 5 . . . . . . 1 . . . . Launcher 1 | . . . . . . . 1 . . 7 7 3 . Impact Weapon 3 | . . . 5 6 5 9 1 9 . . . 5 3 Slashing Weapon 3 | . . 8 4 2 3 . 4 . 6 7 7 . . Peak Build Rating 69 | 2 7 23 21 30 34 29 29 28 38 39 41 69 69 Average Rating 30 | 1 4 17 17 26 28 28 26 24 28 37 38 59 48 On Entrance 26 | . 2 7 19 18 28 28 29 22 26 38 37 41 69 Naked Turns . | . . . . . . . . . . . . . . Heaviest Build 27 | 3 4 15 13 19 19 19 19 11 20 21 20 27 27 Greatest Support 28 | 3 12 15 14 19 19 19 19 15 21 21 26 28 28 Greatest Overweight (x) 3 | . . 2 . . . . 1 . . . . . 3 Average Overweight (x) . | . . . . . . . . . . . . . . Largest Inventory Capacity 10 | 5 5 8 8 10 10 10 10 5 10 10 10 10 10 Average Capacity 8 | 5 5 7 8 9 10 10 9 5 5 10 10 10 8 Most Carried 10 | 2 5 8 8 10 10 10 10 5 8 9 10 10 10 Average Carried 7 | 1 4 6 8 8 9 9 9 4 4 7 9 9 8 Final Capacity 10 | 5 5 8 8 10 10 10 5 5 10 10 10 10 5 Final Carried 10 | 2 4 8 8 10 10 10 5 4 8 9 10 9 4 Class Distribution -------------------- 65% | Hacker-Sprinter 9% | Sprinter 7% | Hacker-Scout 7% | Hacker-Mutant 5% | Mutant 3% | Scavenger-Mutant Dominant Class ---------------- Mutant | -10/Materials Sprinter | -9/Materials Sprinter | -9/Mines Hacker-Sprinter | -8/Materials Hacker-Sprinter | -8/Garrison Hacker-Sprinter | -8/Materials Hacker-Sprinter | -8/Garrison Hacker-Sprinter | -8/Materials Hacker-Sprinter | -7/Factory Hacker-Sprinter | -7/Lower Caves Hacker-Sprinter | -7/Lower Caves Hacker-Scout | -6/Factory Hacker-Mutant | -6/Garrison Resources | -11 -10 -9 -9 -8 -8 -8 -8 -8 -7 -7 -7 -6 -6 ----------- Run | Yrd Mat Mat Min Mat Gar Mat Gar Mat Fac Low Low Fac Gar Matter Collected 1740 | 240 130 168 101 152 70 80 110 . 305 141 54 56 133 Remotely . | . . . . . . . . . . . . . . Salvage Created 1652 | 65 224 127 113 174 217 39 96 . 336 72 . 56 133 Parts 94 | 2 15 9 10 13 6 1 9 . 18 4 . 3 4 Haulers Intercepted 4 | . 1 1 . 2 . . . . . . . . . Recyclers Shooed 4 | . 1 1 2 . . . . . . . . . . Parts Field Recycled . | . . . . . . . . . . . . . . Retrieved Matter . | . . . . . . . . . . . . . . Parts Self-Destructed 2 | . . . . . . . . . . 2 . . . Prevented . | . . . . . . . . . . . . . . Kills | -11 -10 -9 -9 -8 -8 -8 -8 -8 -7 -7 -7 -6 -6 ------- Run | Yrd Mat Mat Min Mat Gar Mat Gar Mat Fac Low Low Fac Gar Combat Hostiles Destroyed 39 | . 7 4 4 1 5 2 5 . 4 4 . 1 2 Melee 14 | . . 1 . 1 5 . 1 . 4 . . 1 1 Guns 7 | . 7 . . . . . . . . . . . . Cannons 3 | . . 3 . . . . . . . . . . . AOE 14 | . . . 4 . . 2 4 . . 4 . . . Classes Destroyed 9 | 1 3 . . 2 1 . 1 . 1 . . . . Hauler 4 | . 1 1 . 2 . . . . . . . . . Recycler 5 | 1 . . 2 . . . . . 2 . . . . Operator 3 | . . . . 2 . . . . 1 . . . . Watcher 4 | . . . . 1 . 1 . . 1 . . 1 . Swarmer 26 | . 5 3 4 1 1 2 3 . 3 4 . . . Grunt 7 | . 2 1 . . 3 . 1 . . . . . . Sentry 3 | . . . . . . . . . 1 . . . 2 Hunter 1 | . . . . . 1 . . . . . . . . Programmer 2 | . . . . . . . 1 . . . . 1 . Best Kill Streak 6 | 1 4 3 6 2 2 3 4 . 3 4 . 1 1 Combat Bots Only 4 | . 4 3 4 1 2 2 4 . 1 4 . 1 1 Max Kills in Single Turn 4 | 1 1 1 2 1 1 1 4 . 1 3 . 1 1 Gunslinging . | . . . . . . . . . . . . . . Exploded 4 | . . . 2 . . 1 4 . . 3 . . . Melee 1 | . . 1 . 1 1 . 1 . 1 . . 1 1 Uniques/NPCs Destroyed . | . . . . . . . . . . . . . . Combat | -11 -10 -9 -9 -8 -8 -8 -8 -8 -7 -7 -7 -6 -6 -------- Run | Yrd Mat Mat Min Mat Gar Mat Gar Mat Fac Low Low Fac Gar Hostile Shots Fired 563 | . 64 45 18 27 20 8 57 9 132 11 . 25 147 Missed 260 | . 25 17 10 11 9 5 24 4 64 6 . 14 71 Hits 303 | . 39 28 8 16 11 3 33 5 68 5 . 11 76 Melee 1 | . . . . . . . . . . . . . 1 Projectile 302 | . 39 28 8 16 11 3 33 5 68 5 . 11 75 AOE 1 | . . . . . . . 1 . . . . . . Critical Strikes 4 | . 3 . . . . . . . . . . . 1 Damage Taken 4610 | . 460 256 73 199 85 46 500 79 1505 80 . 100 1227 Core 2052 | . 157 117 27 70 33 . 142 15 591 49 . 21 830 Absorbed by Shields 70 | . . . . . 50 . 20 . . . . . . Redirected to Shielding 21 | . . . . . . . . . . . . . 21 Regen/Repaired (Parts) 264 | . . 40 . 21 . 33 . 111 20 . . 39 . Core Remaining (%) 52 | 100 37 . 64 . . . . 52 . . 8 . . Volleys Fired 91 | 5 44 12 6 . . 2 6 . . 3 . 13 . Largest 2 | 2 2 2 1 . . 1 1 . . 1 . 1 . Hottest 100 | 40 40 100 30 . . 30 30 . . 30 . 40 . Shots Fired 124 | 10 67 17 6 . . 2 6 . . 3 . 13 . Gun 83 | 10 67 6 . . . . . . . . . . . Cannon 22 | . . 9 . . . . . . . . . 13 . Launcher 17 | . . . 6 . . 2 6 . . 3 . . . Special 2 | . . 2 . . . . . . . . . . . Kinetic 96 | 10 67 6 . . . . . . . . . 13 . Thermal 11 | . . 11 . . . . . . . . . . . Explosive 17 | . . . 6 . . 2 6 . . 3 . . . Electromagnetic . | . . . . . . . . . . . . . . Robot Hit Streak 7 | 5 7 2 . . . 1 . . . 2 . 1 . Robot Miss Streak 5 | 1 3 5 . . . 1 . . . 1 . 2 . Penetration Max . | . . . . . . . . . . . . . . Secondary Targets 2 | . 2 . . . . . . . . . . . . Max Gunslinging Chain 1 | . 1 . . . . . . . . . . . . Shots Hit Robots 109 | 8 38 11 . 10 15 2 3 . 15 2 . 2 3 Core Hits 70 | 2 18 5 10 4 4 2 8 . 8 6 . 1 2 Critical Kills . | . . . . . . . . . . . . . . Critical Parts Destroyed 2 | . . . . 1 . . . . . . . 1 . Critical Strikes 6 | . . . . 2 2 . 1 . . . . 1 . Smash 2 | . . . . 1 . . . . . . . 1 . Sever 4 | . . . . 1 2 . 1 . . . . . . Melee Attacks 263 | . . 10 . 24 57 14 33 4 71 11 . 21 18 Impact 87 | . . . . 9 6 14 15 4 5 . . 20 14 Slashing 176 | . . 10 . 15 51 . 18 . 66 11 . 1 4 Piercing . | . . . . . . . . . . . . . . Sneak Attacks 18 | . . 3 . 4 5 . . . 4 . . 1 1 Combat Hostiles 8 | . . . . . 5 . . . 1 . . 1 1 Follow-up Attacks . | . . . . . . . . . . . . . . Damage Inflicted 4439 | 86 315 377 369 635 689 211 346 . 723 386 . 172 130 Guns 407 | 86 315 6 . . . . . . . . . . . Cannons 133 | . . 103 . . . . . . . . . 30 . Explosions 1073 | . . . 369 . . 151 241 . . 312 . . . Melee 2826 | . . 268 . 635 689 60 105 . 723 74 . 142 130 Ramming . | . . . . . . . . . . . . . . Kinetic 437 | 86 315 6 . . . . . . . . . 30 . Thermal 103 | . . 103 . . . . . . . . . . . Explosive 1073 | . . . 369 . . 151 241 . . 312 . . . Electromagnetic . | . . . . . . . . . . . . . . Impact 560 | . . . . 257 39 60 . . . . . 142 62 Slashing 2266 | . . 268 . 378 650 . 105 . 723 74 . . 68 Piercing . | . . . . . . . . . . . . . . Highest Corruption 3 | . . . . . . . 3 3 . . . . . Average Corruption 2 | . . . . . . . 2 3 . . . . . Corruption Purged . | . . . . . . . . . . . . . . Corruption Blocked . | . . . . . . . . . . . . . . Effects 3 | . . . . . . . 2 1 . . . . . Heat Flow Errors 1 | . . . . . . . . 1 . . . . . Energy Discharges 2 | . . . . . . . 2 . . . . . . Overload Shots . | . . . . . . . . . . . . . . Overflow Damage 715 | . . 50 52 235 107 38 4 . 55 32 . 142 . Projectiles . | . . . . . . . . . . . . . . Explosions 52 | . . . 52 . . . . . . . . . . Melee 663 | . . 50 . 235 107 38 4 . 55 32 . 142 . Knockbacks . | . . . . . . . . . . . . . . Impact . | . . . . . . . . . . . . . . Kinetic . | . . . . . . . . . . . . . . Secondary . | . . . . . . . . . . . . . . Self-Inflicted Damage 18 | . . . 17 . . 1 . . . . . . . Shots 2 | . . . 1 . . 1 . . . . . . . Rammed . | . . . . . . . . . . . . . . Targets Rammed . | . . . . . . . . . . . . . . Kicked . | . . . . . . . . . . . . . . Crushed . | . . . . . . . . . . . . . . Highest Temperature 250 | . 14 191 10 5 . 5 12 250 53 . . 3 5 Average Temperature 58 | . 4 92 7 3 . 4 5 232 6 . . 2 3 Received Heat Transfer 905 | . 237 42 . 54 17 9 108 45 114 . . 12 267 Siege Activations . | . . . . . . . . . . . . . . Martial Activations . | . . . . . . . . . . . . . . Shielding Activations . | . . . . . . . . . . . . . . Robots Disrupted . | . . . . . . . . . . . . . . Combat Hostiles . | . . . . . . . . . . . . . . Robots Corrupted 2 | . . . . 1 . 1 . . . . . . . Combat Hostiles . | . . . . . . . . . . . . . . Parts Fried 4 | . . . . 3 . 1 . . . . . . . Impact Corruptions 7 | . . . . 2 . 2 . . . . . 3 . Robots Melted . | . . . . . . . . . . . . . . Combat Hostiles . | . . . . . . . . . . . . . . Parts Melted . | . . . . . . . . . . . . . . Heat Transferred 185 | . . 185 . . . . . . . . . . . Parts Sabotaged . | . . . . . . . . . . . . . . Parts Stolen . | . . . . . . . . . . . . . . Parts Stripped . | . . . . . . . . . . . . . . Power Chain Reactions . | . . . . . . . . . . . . . . Alert | -11 -10 -9 -9 -8 -8 -8 -8 -8 -7 -7 -7 -6 -6 ------- Run | Yrd Mat Mat Min Mat Gar Mat Gar Mat Fac Low Low Fac Gar Maximum Alert Level 4 | . 1 1 . 1 4 3 4 2 1 . . . 2 Low Security (%) 53 | 100 66 53 100 89 8 . . . 84 . . 100 28 Level 1 12 | . 33 46 . 10 7 . . . 15 . . . 37 Level 2 13 | . . . . . 12 87 37 100 . . . . 33 Level 3 10 | . . . . . 25 12 59 . . . . . . Level 4 9 | . . . . . 45 . 3 . . . . . . Level 5 . | . . . . . . . . . . . . . . High Security . | . . . . . . . . . . . . . . Max Security . | . . . . . . . . . . . . . . Peak Influence 1250 | . 265 243 180 235 1216 709 1250 624 299 . . 108 597 Initial 609 | . . 111 78 46 152 592 460 609 283 . . 63 7 Average 354 | . 167 163 132 123 867 630 739 592 65 . . 68 330 Influence Increases 5521 | 5 502 372 132 411 1104 227 930 95 599 140 . 304 700 Destroy 0b10 Robot/C 1160 | . 140 80 80 20 300 40 220 . 80 80 . 20 100 Destroy 0b10 Robot/NC 85 | 5 5 5 10 25 . 5 . . 20 5 . 5 . Destroy Leader 166 | . 32 12 10 6 30 12 10 . 22 10 . 12 10 Allied During Kill 157 | . . . . . 97 . 26 . 9 . . . 25 Trap Triggered on 0b10 10 | . . . 10 . . . . . . . . . . Successful Hack 376 | . 24 44 . 64 20 23 5 16 75 . . 93 12 Select Force Hacks 30 | . . 30 . . . . . . . . . . . Disable Machine 60 | . . . . . 15 . 15 . 15 . . . 15 Anti-Garrison Action 1000 | . . . . . 450 . 300 . . . . . 250 Destroy Structure 377 | . 1 6 22 11 117 27 84 4 48 . . 24 33 Partial Spotted 630 | . 30 105 . 150 30 75 15 75 90 . . 30 30 Lose Combat Pursuer 1470 | . 270 90 . 135 45 45 255 . 240 45 . 120 225 Influence Decreases 4964 | 5 238 433 215 296 123 734 389 721 1116 121 25 394 154 Entered New Map 2398 | . . 153 125 74 83 624 249 641 341 41 25 38 4 Time Decay 1711 | 5 198 230 90 222 . 110 . 80 350 70 . 356 . Lost Part 298 | . 30 30 . . . . 60 . 98 10 . . 70 Lost Ally 320 | . 10 20 . . 40 . 80 . 90 . . . 80 Purge Threat 237 | . . . . . . . . . 237 . . . . Squads Dispatched 28 | . 2 2 . 3 . 3 . 6 9 . . 3 . Investigation 12 | . . 2 . 2 . 2 . 1 4 . . 1 . Extermination 5 | . . . . . . . . . 3 . . 2 . Reinforcement 8 | . 2 . . 1 . 1 . 2 2 . . . . Assault 2 | . . . . . . . . 2 . . . . . Garrison 1 | . . . . . . . . 1 . . . . . Intercept . | . . . . . . . . . . . . . . Searches Triggered . | . . . . . . . . . . . . . . Construction Impeded . | . . . . . . . . . . . . . . Haulers Reinforced . | . . . . . . . . . . . . . . Active Scanning Responses . | . . . . . . . . . . . . . . Cargo Convoy Interrupts . | . . . . . . . . . . . . . . Stealth | -11 -10 -9 -9 -8 -8 -8 -8 -8 -7 -7 -7 -6 -6 --------- Run | Yrd Mat Mat Min Mat Gar Mat Gar Mat Fac Low Low Fac Gar Distress Signals 17 | . 7 3 . 1 . 1 . 3 2 . . . . Communications Jammed . | . . . . . . . . . . . . . . Distress Signals . | . . . . . . . . . . . . . . Times Spotted 283 | . 41 41 8 21 21 15 34 10 41 6 . 15 30 Peak Tracking Total 21 | . 9 10 4 6 6 9 21 13 7 4 . 5 16 Tactical Retreats 57 | . 8 7 2 7 3 3 4 . 12 1 . 5 5 Traps | -11 -10 -9 -9 -8 -8 -8 -8 -8 -7 -7 -7 -6 -6 ------- Run | Yrd Mat Mat Min Mat Gar Mat Gar Mat Fac Low Low Fac Gar Traps Triggered 14 | . . . . . 7 . 1 . 6 . . . . Indirectly . | . . . . . . . . . . . . . . Trap Hack Attempts . | . . . . . . . . . . . . . . Triggered . | . . . . . . . . . . . . . . Disarmed . | . . . . . . . . . . . . . . Reprogrammed . | . . . . . . . . . . . . . . Reused 1 | . . . 1 . . . . . . . . . . Traps Extracted . | . . . . . . . . . . . . . . Installed 5 | . . . 5 . . . . . . . . . . Triggered 1 | . . . 1 . . . . . . . . . . Machines | -11 -10 -9 -9 -8 -8 -8 -8 -8 -7 -7 -7 -6 -6 ---------- Run | Yrd Mat Mat Min Mat Gar Mat Gar Mat Fac Low Low Fac Gar Machines Disabled 19 | . . . . . 6 . 7 . 1 . . . 5 Max in Single Turn 1 | . . . . . 1 . 1 . 1 . . . 1 Garrison Access 3 | . . . . . . . . 1 2 . . . . Garrison Relay 12 | . . . . . 5 . 3 . . . . . 4 Phase Generator 1 | . . . . . . . 1 . . . . . . Machines Repaired . | . . . . . . . . . . . . . . Machines Dismantled 1 | . . . . . . . 1 . . . . . . Machines Sabotaged . | . . . . . . . . . . . . . . Overloaded Fab Kills . | . . . . . . . . . . . . . . Hacking | -11 -10 -9 -9 -8 -8 -8 -8 -8 -7 -7 -7 -6 -6 --------- Run | Yrd Mat Mat Min Mat Gar Mat Gar Mat Fac Low Low Fac Gar Machines Accessed 101 | . 5 15 . 14 3 10 2 5 24 . . 21 2 Terminals 74 | . 5 11 . 11 3 8 2 3 14 . . 15 2 Fabricators 6 | . . . . . . . . . 5 . . 1 . Repair Stations 9 | . . 2 . 1 . 1 . 1 2 . . 2 . Recycling Units 1 | . . 1 . . . . . . . . . . . Scanalyzers 4 | . . 1 . 1 . . . 1 . . . 1 . Garrison Access 7 | . . . . 1 . 1 . . 3 . . 2 . Total Hacks 385 | . 21 43 . 50 7 37 6 26 95 . . 96 4 Successful 259 | . 13 27 . 38 4 24 1 21 61 . . 68 2 Failed 125 | . 8 15 . 12 3 13 5 5 34 . . 28 2 Catastrophic 8 | . 1 . . . . 1 . 1 2 . . 2 1 Database Lockouts 1 | . . 1 . . . . . . . . . . . Manual 244 | . 20 35 . 33 3 20 3 16 54 . . 57 3 Terminals 298 | . 21 35 . 42 7 31 6 17 69 . . 66 4 Fabricators 20 | . . . . . . . . . 18 . . 2 . Repair Stations 27 | . . 4 . 2 . 3 . 7 4 . . 7 . Recycling Units 1 | . . 1 . . . . . . . . . . . Scanalyzers 24 | . . 3 . 3 . . . 2 . . . 16 . Garrison Access 15 | . . . . 3 . 3 . . 4 . . 5 . Terminal Hacks 67 | . 1 7 . 12 3 6 1 5 12 . . 18 2 Part Schematic 3 | . . . . . . . . . 1 . . 2 . Robot Schematic 2 | . . . . . . . . . . . . 2 . Robot Analysis 8 | . . 1 . 4 . . . . . . . 3 . Prototype ID Bank 3 | . . . . 1 . 1 . 1 . . . . . Open Door 3 | . . . . . 1 . 1 . . . . . 1 Branch Access Points 3 | . . 1 . 1 . . . . 1 . . . . Emergency Access Points 1 | . . . . . 1 . . . . . . . . Machine Index 2 | . . . . 1 . 1 . . . . . . . Terminal Index 6 | . 1 1 . 1 . 1 . 1 . . . 1 . Repair Station Index 2 | . . . . . . . . 1 . . . 1 . Recycling Unit Index 1 | . . 1 . . . . . . . . . . . Scanalyzer Index 1 | . . . . . . . . . . . . 1 . Alert Level 2 | . . . . . . . . 1 . . . 1 . Unreport Threat 3 | . . . . . . . . . 3 . . . . Locate Traps 1 | . . . . . . 1 . . . . . . . Security Status 1 | . . . . . . . . . 1 . . . . Recall Investigation 1 | . . . . . . . . . . . . 1 . Recall Extermination 1 | . . . . . . . . . . . . 1 . Hauler Manifests 2 | . . . . . . . . . 1 . . 1 . Registered Components 2 | . . 1 . . . . . . 1 . . . . Registered Prototypes 1 | . . . . . . . . 1 . . . . . Zone Layout 16 | . . 2 . 4 . 2 . . 4 . . 4 . Garrison Registry 1 | . . . . . . . . . . . . . 1 Patrol Navigation 1 | . . . . . 1 . . . . . . . . Fabricator Hacks 10 | . . . . . . . . . 8 . . 2 . Network Status 1 | . . . . . . . . . 1 . . . . Load Schematic 5 | . . . . . . . . . 4 . . 1 . Build 4 | . . . . . . . . . 3 . . 1 . Repair Station Hacks 23 | . . 4 . 2 . 2 . 6 4 . . 5 . Scan Component 12 | . . 2 . 1 . 1 . 3 2 . . 3 . Repair 11 | . . 2 . 1 . 1 . 3 2 . . 2 . Recycling Unit Hacks . | . . . . . . . . . . . . . . Scanalyzer 16 | . . 2 . 2 . . . 2 . . . 10 . Insert Component 8 | . . 1 . 1 . . . 1 . . . 5 . Analyze 8 | . . 1 . 1 . . . 1 . . . 5 . Garrison Access Hacks 5 | . . . . 1 . 1 . . 2 . . 1 . Unlock Access 3 | . . . . 1 . 1 . . . . . 1 . Seal Access 2 | . . . . . . . . . 2 . . . . Unauthorized Hacks 138 | . 12 14 . 21 1 15 . 8 35 . . 32 . Terminals 127 | . 12 13 . 20 1 12 . 7 31 . . 31 . Track 19 | . 1 . . 3 . 4 . . 4 . . 7 . Assimilate 8 | . 1 2 . 1 . . . . 2 . . 2 . Botnet 45 | . 3 6 . 8 . 3 . 3 12 . . 10 . Disrupt 3 | . 1 . . . . . . . 2 . . . . Operators 4 | . 1 . . 1 . . . 1 . . . 1 . Skim 47 | . 5 5 . 7 . 5 . 3 11 . . 11 . Override 1 | . . . . . 1 . . . . . . . . Fabricators 4 | . . . . . . . . . 4 . . . . Prioritize 2 | . . . . . . . . . 2 . . . . Recompile 2 | . . . . . . . . . 2 . . . . Repair Stations 2 | . . . . . . 1 . 1 . . . . . Patch 2 | . . . . . . 1 . 1 . . . . . Recycling Units 1 | . . 1 . . . . . . . . . . . Tunnel 1 | . . 1 . . . . . . . . . . . Scanalyzers . | . . . . . . . . . . . . . . Garrison Access 4 | . . . . 1 . 2 . . . . . 1 . Broadcast 1 | . . . . . . 1 . . . . . . . Redirect 1 | . . . . . . . . . . . . 1 . Reprogram 2 | . . . . 1 . 1 . . . . . . . Data Cores Recovered 1 | . . . . . . . . . 1 . . . . Used . | . . . . . . . . . . . . . . Hacking Detections 86 | . 5 12 . 14 2 10 2 4 18 . . 18 1 Full Trace Events 10 | . 2 . . 2 1 . 1 . 2 . . 1 1 Feedback Events 1 | . . . . . . . 1 . . . . . . Hackware Fried 1 | . . . . . . . 1 . . . . . . Feedback Blocked 1 | . . . . . . . . . 1 . . . . Robot Schematics Acquired 2 | . . . . . . . . . . . . 2 . Robots Built 4 | . . . . . . . . . 4 . . . . Authchips . | . . . . . . . . . . . . . . Time 67 | . . . . . . . . . 67 . . . . Total Robot Build Rating 16 | . . . . . . . . . 16 . . . . Part Schematics Acquired 11 | . . 1 . 1 . . . 1 1 . . 7 . Parts Built 5 | . . . . . . . . . 4 . . 1 . Authchips 2 | . . . . . . . . . 2 . . . . Time 119 | . . . . . . . . . 72 . . 47 . Total Part Build Rating 17 | . . . . . . . . . 12 . . 5 . Parts Repaired 10 | . . 2 . 1 . 1 . 3 1 . . 2 . Time 381 | . . 64 . 38 . 38 . 108 51 . . 82 . Parts Recycled . | . . . . . . . . . . . . . . Recycled Matter . | . . . . . . . . . . . . . . Retrieved Matter . | . . . . . . . . . . . . . . Retrieved Components . | . . . . . . . . . . . . . . Parts Scanalyzed 8 | . . 1 . 1 . . . 1 . . . 5 . Part Schematics Acquired 8 | . . 1 . 1 . . . 1 . . . 5 . Parts Damaged 1 | . . . . . . . . . . . . 1 . Bothacking | -11 -10 -9 -9 -8 -8 -8 -8 -8 -7 -7 -7 -6 -6 ------------ Run | Yrd Mat Mat Min Mat Gar Mat Gar Mat Fac Low Low Fac Gar Used RIF Installer . | . . . . . . . . . . . . . . Robots Hacked . | . . . . . . . . . . . . . . Non-combat . | . . . . . . . . . . . . . . Combat . | . . . . . . . . . . . . . . Robot Hacks Applied . | . . . . . . . . . . . . . . Relay Couplers Released 49 | . . . . . 20 . 11 3 . . . . 15 Machine Destruction 49 | . . . . . 20 . 11 3 . . . . 15 Fabnet Peak Effective % . | . . . . . . . . . . . . . . Robots Rewired 3 | . . . . . . . . . . . . . 3 Allies Hacked 3 | . . . . . 3 . . . . . . . . Hacks Repelled 1 | . . . . . . . . . . . . . 1 Allies | -11 -10 -9 -9 -8 -8 -8 -8 -8 -7 -7 -7 -6 -6 -------- Run | Yrd Mat Mat Min Mat Gar Mat Gar Mat Fac Low Low Fac Gar Total Allies 23 | . 1 2 . . 4 3 2 . 6 . . 2 3 Largest Group 4 | . 1 1 . . 3 3 3 . 4 . . 2 3 Highest-Rated Group 201 | . 10 10 . . 201 48 50 . 48 . . 52 104 Highest-Rated Ally 178 | . 10 10 . . 178 16 25 . 26 . . 26 46 Initial Warlord ECA Mod 107 | . . . . . . 9 9 16 15 15 15 14 14 Total Orders . | . . . . . . . . . . . . . . Ally Attacks 116 | . . . . . 31 . 39 . 28 . . . 18 Total Damage 2715 | . . . . . 1286 . 628 . 211 . . . 590 Kills 19 | . . . . . 10 . 6 . . . . . 3 Allies Corrupted 2 | . . . . . . . 1 . . . . . 1 Allies Melted . | . . . . . . . . . . . . . . Intel | -11 -10 -9 -9 -8 -8 -8 -8 -8 -7 -7 -7 -6 -6 ------- Run | Yrd Mat Mat Min Mat Gar Mat Gar Mat Fac Low Low Fac Gar Active Infowar (turns) 2825 | . . 352 196 80 . . . . 999 156 19 816 207 Optics 770 | . . 134 . . . . . . . . . 429 207 Sensors 1002 | . . . . . . . . . . 155 19 816 12 Machine Analysis 1000 | . . . . . . . . . 999 1 . . . ECM 530 | . . 218 196 80 . . . . 36 . . . . Robot Analysis Total 8 | . . 1 . 4 . . . . . . . 3 . Derelict Logs Recovered 5 | . . . 2 . . . . . . 2 1 . . Drone Launches . | . . . . . . . . . . . . . . Drone Recoveries . | . . . . . . . . . . . . . . Exploration | -11 -10 -9 -9 -8 -8 -8 -8 -8 -7 -7 -7 -6 -6 ------------- Run | Yrd Mat Mat Min Mat Gar Mat Gar Mat Fac Low Low Fac Gar Turns Passed 5907 | 49 406 483 196 466 1212 232 412 179 1073 157 19 816 207 Spaces Moved 10699 | 60 704 1037 556 880 923 525 610 208 2350 376 55 2039 376 Core 209 | 60 61 . . . . . . . 26 . . . 62 Treads . | . . . . . . . . . . . . . . Legs . | . . . . . . . . . . . . . . Wheels . | . . . . . . . . . . . . . . Hover 15 | . 15 . . . . . . . . . . . . Flight 10475 | . 628 1037 556 880 923 525 610 208 2324 376 55 2039 314 Fastest Speed 23 | 50 37 29 30 26 26 26 23 26 23 27 25 25 26 Average Speed 28 | 50 40 30 30 26 26 26 26 26 28 27 26 25 33 Slowest Speed 200 | 50 60 200 30 27 27 27 82 26 50 30 27 27 200 Overloaded Moves 15 | . . . . . . . 15 . . . . . . Propulsion Burnouts . | . . . . . . . . . . . . . . Robots Hopped 90 | . 13 20 1 8 . 2 2 3 15 . . 15 11 Potential Cave-ins . | . . . . . . . . . . . . . . Cave-ins Triggered . | . . . . . . . . . . . . . . Exploration Rate (%) 61 | 3 86 89 96 73 90 58 72 23 74 65 9 60 60 Regions Visited 13 Branch Regions 3 Pre-discovered Areas 10 | . . 3 1 . . . . . 1 1 . 4 . Known Exits Taken 7 | . . 1 . 1 . 1 . . 1 1 1 1 . Unknown Exits Taken 4 | 1 1 . 1 . . . . 1 . . . . . Scrap Searched 4 | . . . 1 . . . . . . 2 1 . . Spaces Dug 139 | . . 6 . 11 7 13 10 4 48 10 . 27 3 Terrain Destroyed 264 | . . 6 23 11 7 27 95 4 48 12 . 28 3 Melee 131 | . . 5 . 11 7 13 10 4 48 10 . 20 3 Projectile 9 | . . 1 . . . . . . . . . 8 . AOE 124 | . . . 23 . . 14 85 . . 2 . . . Terrain Rammed . | . . . . . . . . . . . . . . Walls Destroyed . | . . . . . . . . . . . . . . Machines Disabled . | . . . . . . . . . . . . . . Actions | -11 -10 -9 -9 -8 -8 -8 -8 -8 -7 -7 -7 -6 -6 --------- Run | Yrd Mat Mat Min Mat Gar Mat Gar Mat Fac Low Low Fac Gar Total 12876 | 68 755 1148 575 1065 1807 599 785 323 2608 411 57 2259 416 Wait 1480 | . 9 73 3 147 690 50 104 108 110 13 1 161 11 Move 10512 | 59 677 998 553 865 922 520 605 201 2319 375 54 2009 355 Hop 82 | . 13 18 1 6 . 2 2 3 15 . . 14 8 Pick Up 46 | 2 4 10 . 5 . 2 1 . 13 2 . 7 . Fast Attach 61 | 2 5 9 1 2 2 . . 3 27 2 1 6 1 Attach 28 | . 1 5 . 2 . . 5 2 6 2 . 2 3 Detach 11 | . . 1 1 1 1 . . 1 1 1 . 1 3 Swap 57 | . 1 3 4 10 5 6 10 1 4 . 1 10 2 Drop 53 | . 1 9 1 3 2 3 2 . 6 2 . 15 9 Fire 91 | 5 44 12 6 . . 2 6 . . 3 . 13 . Melee 263 | . . 10 . 24 57 14 33 4 71 11 . 21 18 Ram . | . . . . . . . . . . . . . . Kick . | . . . . . . . . . . . . . . Crush . | . . . . . . . . . . . . . . Escape Stasis 168 | . . . . . 126 . 6 . 36 . . . . Rewire 8 | . . . . . 2 . . . . . . . 6 Trap 5 | . . . 5 . . . . . . . . . . Miscellaneous 11 | . . . . . . . 11 . . . . . . Route ------- -11/Scrapyard -10/Materials (discovered 4 exits: *Mat x3 / [*Min]) -9/Materials (discovered 5 exits: *Mat x3 / *Min x2) -9/Mines (discovered 2 exits: *Mat x2) -8/Materials (discovered 2 exits: *Fac / Gar) -8/Garrison (discovered 3 exits: *Mat x3) -8/Materials (discovered 2 exits: *Fac / Gar) -8/Garrison (discovered 2 exits: *Mat x2) -8/Materials -7/Factory (discovered 7 exits: *Fac x4 / *Sto / *Low x2) -7/Lower Caves -7/Lower Caves (discovered 2 exits: *Fac / Zio) -6/Factory (discovered 7 exits: *Fac x4 / *Low x2 / Gar) -6/Garrison (discovered 3 exits: *Fac x3) History --------- Turn | Location | Event 17 | -11/Scrapyard | Discovered new exit (range 15) 50 | -11/Scrapyard | Entered Materials 77 | -10/Materials | Discovered new exit (range 4) 139 | -10/Materials | Discovered new exit (range 16) 195 | -10/Materials | Discovered new exit (range 6) 204 | -10/Materials | Discovered new exit (range 15) 315 | -10/Materials | Core integrity fell below 50% 317 | -10/Materials | Build established: Mutant 456 | -10/Materials | Entered another Materials area 456 | -9/Materials | Evolved 2 slots: Propulsion x1, Utility x1 522 | -9/Materials | Lost 3 parts (2n1w) 591 | -9/Materials | Discovered new exit (range 14) 632 | -9/Materials | Repaired ECM Suite 704 | -9/Materials | Discovered new exit (range 18) 733 | -9/Materials | Discovered new exit (range 16) 741 | -9/Materials | Central database locked down 754 | -9/Materials | Loaded intel: 16 trap records 812 | -9/Materials | Learned location of Zion (-7) 833 | -9/Materials | Discovered new exit (range 10) 845 | -9/Materials | Identified exit to Mines 848 | -9/Materials | Build established: Sprinter 861 | -9/Materials | Learned 4 Recycling zone layouts 899 | -9/Materials | Learned Storage stockpile data 917 | -9/Materials | Repaired Cesium-ion Thruster 926 | -9/Materials | Learned location of Recycling (-7) 939 | -9/Materials | Entered Mines 958 | -9/Mines | Learned Materials stockpile data 993 | -9/Mines | Discovered new exit (range 12) 1031 | -9/Mines | A weapon hastily lodged in a ceiling crevice suddenly fell to the ground 1047 | -9/Mines | Learned 2 Materials zone layouts 1073 | -9/Mines | Learned location of Storage (-7) 1083 | -9/Mines | Found a hidden stash of uninstalled traps 1126 | -9/Mines | Discovered new exit (range 10) 1135 | -9/Mines | Entered Materials 1135 | -8/Materials | Evolved 2 slots: Propulsion x1, Utility x1 1275 | -8/Materials | Repaired Cesium-ion Thruster 1390 | -8/Materials | Learned 2 Storage zone layouts 1444 | -8/Materials | Discovered new exit (range 16) 1445 | -8/Materials | Learned location of 1 exit from Extension 1445 | -8/Materials | Build established: Hacker-Sprinter 1488 | -8/Materials | Learned Factory interactive machine intel 1523 | -8/Materials | Learned location of 1 exit from Extension 1547 | -8/Materials | Learned 4 Factory zone layouts 1560 | -8/Materials | Learned location of 1 exit from Recycling 1575 | -8/Materials | Learned Factory recycling unit intel 1599 | -8/Materials | Identified exit to Garrison 1601 | -8/Materials | Entered Garrison 1646 | -8/Garrison | Rescued AZ-K3N 1708 | -8/Garrison | Garrison Relay disabled 1728 | -8/Garrison | Garrison Relay disabled 1737 | -8/Garrison | Triggered checkpoint 1794 | -8/Garrison | AZ-K3N assimilated hostile L-31 Rogue 1839 | -8/Garrison | Triggered checkpoint 1875 | -8/Garrison | Triggered checkpoint 1934 | -8/Garrison | Discovered new exit (range 10) 1943 | -8/Garrison | Garrison Relay disabled 1947 | -8/Garrison | Identified exit to Materials 1951 | -8/Garrison | Triggered checkpoint 2123 | -8/Garrison | Garrison Relay disabled 2125 | -8/Garrison | Triggered checkpoint 2255 | -8/Garrison | Triggered checkpoint 2256 | -8/Garrison | Garrison Relay disabled 2813 | -8/Garrison | Entered Materials 2976 | -8/Materials | Repaired Cesium-ion Thruster 2977 | -8/Materials | Learned Storage stockpile data 2998 | -8/Materials | Discovered new exit (range 15) 3024 | -8/Materials | Learned 4 Recycling zone layouts 3039 | -8/Materials | Identified exit to Garrison 3045 | -8/Materials | Entered Garrison 3045 | -8/Garrison | Accompanied by 3 allies 3116 | -8/Garrison | Phase Generator disabled 3124 | -8/Garrison | Triggered checkpoint 3254 | -8/Garrison | Rescued a captive Derelict 3255 | -8/Garrison | Rescued a captive Derelict 3283 | -8/Garrison | Lost 3 allies 3329 | -8/Garrison | Garrison Relay disabled 3335 | -8/Garrison | Triggered checkpoint 3385 | -8/Garrison | Discovered new exit (range 11) 3421 | -8/Garrison | Triggered checkpoint 3424 | -8/Garrison | Spotted B-75 Beast 3424 | -8/Garrison | Spotted B-75 Beast 3428 | -8/Garrison | Hacking Suite fried by hacking feedback 3433 | -8/Garrison | Discovered new exit (range 14) 3439 | -8/Garrison | Triggered checkpoint 3457 | -8/Garrison | Entered Materials 3479 | -8/Materials | Lost 4 parts (1p2n1u) 3500 | -8/Materials | Garrison activated, responded to threat 3535 | -8/Materials | Repaired Cesium-ion Thruster 3568 | -8/Materials | Repaired VTOL Module 3608 | -8/Materials | Repaired Surge Thruster 3635 | -8/Materials | Discovered new exit (range 6) 3636 | -8/Materials | Entered Factory 3636 | -7/Factory | Evolved 2 slots: Propulsion x1, Utility x1 3637 | -7/Factory | Identified exit to Lower Caves 3638 | -7/Factory | Loaded intel: 52 interactive machine locations 3639 | -7/Factory | Loaded intel: 6 recycling unit locations 3645 | -7/Factory | Identified exit to Storage 3708 | -7/Factory | Repaired Lgt. Armor Plating? 3745 | -7/Factory | Fabricated S-27 Virus? 3814 | -7/Factory | Lost 4 allies 3870 | -7/Factory | Lost 7 parts (1p3n2u1w) 3939 | -7/Factory | Repaired Cesium-ion Thruster 3953 | -7/Factory | Discovered new exit (range 14) 3962 | -7/Factory | Learned location of 2 exits from Archives 3967 | -7/Factory | Discovered new exit (range 8) 4006 | -7/Factory | Learned 2 Upper Caves zone layouts 4060 | -7/Factory | Learned Hub_04(d) stockpile data 4072 | -7/Factory | Learned location of Hub_04(d) (-5) 4076 | -7/Factory | Learned location of 2 exits from Upper Caves 4090 | -7/Factory | Learned Hub_04(d) emergency access door positions 4114 | -7/Factory | Learned location of 2 exits from Lower Caves 4147 | -7/Factory | Identified exit to Factory 4147 | -7/Factory | Learned location of 1 exit from Factory 4258 | -7/Factory | Lost 5 parts (4n1u) 4363 | -7/Factory | Fabricated Cesium-ion Thruster (x2) 4410 | -7/Factory | Core integrity fell below 50% 4440 | -7/Factory | Lost 7 parts (1p4n1u1w) 4626 | -7/Factory | Fabricated Cesium-ion Thruster (x2) 4709 | -7/Factory | Core integrity fell below 20% 4709 | -7/Factory | Entered Lower Caves 4710 | -7/Lower Caves | Identified exit to Lower Caves 4715 | -7/Lower Caves | Met a Warlord Commander 4716 | -7/Lower Caves | Learned location of Warlord (-5) 4717 | -7/Lower Caves | Warlord Commander delivered Encrypted Comm Array 4718 | -7/Lower Caves | Found Encrypted Comm Array 4832 | -7/Lower Caves | Learned 12 Factory zone layouts 4837 | -7/Lower Caves | Learned Factory stockpile data 4866 | -7/Lower Caves | Entered another Lower Caves area 4867 | -7/Lower Caves | Identified exit to Zion 4876 | -7/Lower Caves | Encountered a Warlord checkpoint 4877 | -7/Lower Caves | Learned Factory emergency access door positions 4885 | -7/Lower Caves | Entered Factory 4885 | -6/Factory | Evolved 2 slots: Utility x2 4886 | -6/Factory | Identified exit to Lower Caves 4945 | -6/Factory | Discovered new exit (range 7) 4946 | -6/Factory | Identified exit to Factory 5089 | -6/Factory | Discovered exit to Factory (range 9) 5140 | -6/Factory | Learned Hub_04(d) garrison access intel 5145 | -6/Factory | Repaired Cesium-ion Thruster 5201 | -6/Factory | Learned location of Lower Caves (-6) 5203 | -6/Factory | Learned Factory stockpile data 5216 | -6/Factory | Learned 4 Extension zone layouts 5241 | -6/Factory | Learned location of Upper Caves (-4) 5243 | -6/Factory | Repaired Chainsword 5540 | -6/Factory | Loaded intel: 8 recycling unit locations 5558 | -6/Factory | Learned location of 1 exit from Extension 5562 | -6/Factory | Learned 2 Proximity Caves zone layouts 5573 | -6/Factory | Build established: Hacker-Scout 5578 | -6/Factory | Learned location of 1 exit from Upper Caves 5657 | -6/Factory | Fabricated Imp. Hacking Suite (x1) 5690 | -6/Factory | Identified exit to Garrison 5701 | -6/Factory | Entered Garrison 5701 | -6/Garrison | Accompanied by 2 allies 5713 | -6/Garrison | Discovered exit to Factory (range 61) 5713 | -6/Garrison | Discovered exit to Factory (range 48) 5713 | -6/Garrison | Discovered exit to Factory (range 87) 5724 | -6/Garrison | Garrison Relay disabled 5725 | -6/Garrison | Triggered checkpoint 5735 | -6/Garrison | Spotted B-75 Beast 5737 | -6/Garrison | Triggered checkpoint 5757 | -6/Garrison | Triggered checkpoint 5760 | -6/Garrison | Garrison Relay disabled 5765 | -6/Garrison | Garrison Relay disabled 5781 | -6/Garrison | Attempted to access garrison exit controls, blocked by remote lockdown 5805 | -6/Garrison | Triggered checkpoint 5866 | -6/Garrison | Garrison Relay disabled 5867 | -6/Garrison | Triggered checkpoint 5887 | -6/Garrison | Attempted to access garrison exit controls, blocked by remote lockdown 5896 | -6/Garrison | Core integrity fell below 50% 5902 | -6/Garrison | Core integrity fell below 20% 5908 | -6/Garrison | Destroyed by Y-54 Guardian with Flak Gun Last Messages --------------- alarm sounds. 05870_ Slug penetrates Wall. 05870_ H-66 Slayer deploys Drone. 05870_ Slug penetrates Wall. 05870_ Drone sends a signal. 05870_ H-66 Slayer retrieves Drone. 05874_ Penetrated by Slug. 05874_ Cesium-ion Thruster destroyed. 05874_ Dropped Utility Shielding. 05874_ Acquired Utility Shielding. 05876_ Dropped Adv. Sensor Array. 05878_ Penetrated by Slug. 05882_ Slug penetrates Wall. 05887_ Attempting to access garrison exit controls... 05887_ Remote lockdown engaged. 05895_ Penetrated by Slug. 05900_ Imp. System Shield destroyed. 05900_ Knocked back. 05904_ Dropped Utility Shielding. Map ----- +----------------------------------------------------+ | ??# #??????# + " #?##"##???????????#""" | | ??# ######## ##### ##### #?# #??????????## ! | | ??# ## ## #???# #???# ### ############ !! | | ??# ## ## ##??# #???# !! | | ### #### #???# ############!! ####""" | | + / #??## #?????????# """"#?#### | | ### ######??#"^#?????????#######????? | | ??# ## ## #???????#T #????????????????????? | | ### ## ## ###?????#""#????????????????????? | | + " " #?????####????????????????????? | | # " " #?????????????????????????????? | | # " " #?????????????????????????????? | | # " " #?????????????????????????????? | | ### ## ## ###?????????????????????????????? | | ### ## ## ############????????????????????? | | #????????????????????? | | #?????######?????????? | | #?????#[[[[#?????????? | | ####+###""""###+##+##+### #######[ [#?????????? | | ???# #?# + + + +[ [#?????????? | | #### #?################## ##### #[ [#?????????? | | #??????????????????# #???# #[ [#?????????? | | # ####??????????????????# #???# ## ##?????????? | | # #?????????????????????#g #???# ## #??????????? | | # #?????????????????????# #####+## #??????????? | | # #?????????????????????#@ ^ #??????????? | | # #?????????????????????# ^ g #??????????? | | # #?????????????????????#g #### ####??????????? | | # #?????????????????????# #??# #?????????????? | | # #?????????????????????# #??#####?????????????? | | # #?????????????????????# #????????????????????? | | # #?????????????????????# !#????????????????????? | | # #?????????????????????# #????????????????????? | | # #?????????????????????#/ #????????????????????? | | # #?????????????????????# Y#????????????????????? | | #?????????????????????# ###################### | | ###?????????????????????# B ! | | ????????????????????????# gB | | ????????????????????????# % % % | | ??????????????????#####?# #################### | | ??????????????????# #?# #??????????????????# | | ?????????????###### ### #??????????????????# | | ?????????????# #??????????????????# | | ?????????????# !!! #??????????????????# | | ?????????????## ### !######??????????????????# | | ??????????????# ##""""!#??????????????????????# | | ??????????????#=########??????????????????????# | | ??????????????#%#?????????????????????????????# | | ????????????###[###???????????????????????????# < | | ???????????##!!*!%#???????????????????????????# | +----------------------------------------------------+ Best States ------------- Heat Dissipation 37 Energy Generation 18 Energy Capacity 700 Matter Stores 300 Matter Capacity 300 Sight Range 22 Robot Scan Range 16 Terrain Scan Density 10 ECM Strength 2 Armor Coverage 150 Utility Shielding 33 Evasion (%) 73 Melee Accuracy 6 Offensive Hacking 24 Defensive Hacking 20 Authchip Count 1 Item Schematics ----------------- Cesium-ion Thruster | -9/Materials | Scanalyzed ECM Suite | -8/Materials | Scanalyzed Plasma Cutter | -8/Materials | Scanalyzed Mic. Fission Core | -7/Factory | Hacked Imp. Cryofiber Web | -6/Factory | Hacked Imp. Surge Thruster | -6/Factory | Hacked Imp. Hacking Suite | -6/Factory | Scanalyzed Thermic Laser | -6/Factory | Scanalyzed Stasis Canceller | -6/Factory | Scanalyzed Mic. Nuclear Core | -6/Factory | Scanalyzed Utility Shielding | -6/Factory | Scanalyzed Robot Schematics ------------------ G-47 Trooper | -6/Factory | Hacked M-28 Smith | -6/Factory | Hacked Fabricated ------------ S-27 Virus | x4 | -7/Factory | Preloaded Cesium-ion Thruster | x2 | -7/Factory | Authchip Cesium-ion Thruster | x2 | -7/Factory | Authchip Imp. Hacking Suite | x1 | -6/Factory Repaired ---------- ECM Suite | 20% | -9/Materials Cesium-ion Thruster | 4% | -9/Materials Cesium-ion Thruster | 16% | -8/Materials Cesium-ion Thruster | 16% | -8/Materials Cesium-ion Thruster | 12% | -8/Materials VTOL Module | 4% | -8/Materials Surge Thruster | 37% | -8/Materials Cesium-ion Thruster | 20% | -7/Factory Cesium-ion Thruster | 56% | -6/Factory Chainsword | 49% | -6/Factory Alien Tech Used ----------------- None Achievements -------------- None Challenges ------------ None Game ------ Seed ThermicGunReactor Manual? 0 Play Time 02:35:16 Cumulative 362.4 hours Start 2025.07.23 @ 21:03:31 End 2025.07.24 @ 14:53:35 Sessions 5 Manual Loads 0 Difficulty Rogue Special Mode None Game No. 174 Rogue 174 Adventurer 0 Explorer 0 Win Type - Total 24 Types 9/1/5/1/5/1/0/1/0/1 Lore% 90 Gallery% 79 Achievement% 76 Wizard Run 0 Options --------- Layout 1 ASCII 0 Keyboard 0 Movement Numpad Keybinds 0 Fullscreen 1 Font 24/Smallcaps Map View 50x35 Zoom Use 0% Tactical HUD 1 Map Filters NONE Filters NONE Steam 1 RUN: 96e9a5e1-9ed3-4810-af5b-956a960aeb33